bitfinex/quotes_SOLUSD_20220307
["timestamp","ask_amount","ask_price","bid_price","bid_amount"]
[1646667920195,39.97013505,85.297,85.235,12.114]
[1646667920391,39.97013505,85.297,85.235,6.114]
[1646667920590,39.97013505,85.297,85.236,6.0]
[1646667920795,0.25,85.296,85.237,6.113]
[1646667921090,25.32580179,85.33,85.25,17.5934]
[1646667921295,25.32580179,85.33,85.252,116.7]
[1646667921495,25.32580179,85.33,85.251,60.6193]
[1646667921496,1.58305524,85.339,85.258,186.76]
[1646667921690,5.861,85.338,85.266,186.76]
[1646667921892,5.861,85.351,85.29,17.5845]
[1646667922091,36.90855217,85.352,85.291,0.25]
[1646667922291,36.90855217,85.352,85.292,5.86]
[1646667922492,36.90855217,85.352,85.293,0.25]
[1646667922691,36.90855217,85.352,85.294,5.86]
[1646667922891,36.90855217,85.352,85.295,0.25]
[1646667923091,36.90855217,85.352,85.296,5.86]
[1646667923292,25.32580179,85.357,85.297,0.25]
[1646667923495,5.86,85.356,85.298,5.86]
[1646667923692,5.86,85.356,85.3,17.5847]
[1646667923896,5.86,85.356,85.258,70.06]
[1646667923897,0.25,85.334,85.258,70.06]
[1646667924095,5.86,85.356,85.27,6.0]
[1646667924096,25.32580179,85.339,85.27,6.0]
[1646667924492,5.86,85.356,85.28,16.86]
[1646667924694,38.14583095,85.37,85.281,11.861]
[1646667924893,38.14583095,85.37,85.291,70.06]
[1646667925093,38.14583095,85.37,85.29,17.5761]
[1646667925094,38.14583095,85.37,85.298,186.76]
[1646667925293,38.14583095,85.37,85.299,12.109]
[1646667925498,5.859,85.369,85.299,12.109]
[1646667925693,6.0,85.368,85.3,58.35]
[1646667925893,6.0,85.368,85.31,17.5809]
[1646667926093,6.0,85.368,85.311,6.25]
[1646667926794,6.0,85.368,85.312,11.857]
[1646667926995,6.0,85.369,85.313,0.25]
[1646667927195,6.0,85.369,85.32,17.5814]
[1646667927395,6.0,85.369,85.321,12.107]
[1646667927599,0.25,85.368,85.321,12.107]
[1646667928397,0.25,85.368,85.321,6.107]
[1646667929797,17.5854,85.36,85.321,0.25]
[1646667929999,6.25,85.359,85.27,16.86]
[1646667930200,6.25,85.359,85.257,76.4689]
[1646667930201,0.25,85.359,85.283,0.25]
[1646667930400,42.18831739,85.357,85.283,0.25]
[1646667930601,12.11,85.356,85.283,6.11]
[1646667930799,17.5869,85.35,85.283,6.11]
[1646667930999,12.11,85.349,85.283,6.11]
[1646667931400,12.11,85.349,85.284,6.0]
[1646667931601,12.11,85.349,85.285,6.11]
[1646667931819,116.7,85.348,85.286,6.0]
[1646667932017,118.28305524,85.339,85.222,71.6276]
[1646667932221,116.7,85.329,85.222,71.6276]
[1646667932418,6.25,85.328,85.222,71.6276]
[1646667932619,5.863,85.327,85.222,71.6276]
[1646667932819,37.47385503,85.325,85.222,71.6276]
[1646667933019,0.25,85.324,85.225,186.76]
[1646667933218,0.25,85.324,85.227,116.7]
[1646667933419,2.83613526,85.323,85.239,116.7]
[1646667933619,0.25,85.322,85.25,17.5961]
[1646667933822,0.25,85.322,85.251,6.25]
[1646667934120,2.83613526,85.321,85.251,6.25]
[1646667934322,0.25,85.32,85.252,6.0]
[1646667934519,0.25,85.32,85.251,0.25]
[1646667934520,5.862,85.319,85.253,0.25]
[1646667934719,0.25,85.318,85.251,0.25]
[1646667935121,5.862,85.317,85.26,17.5937]
[1646667935321,0.25,85.316,85.261,6.25]
[1646667935521,5.862,85.315,85.261,6.25]
[1646667935723,0.25,85.314,85.261,6.25]
[1646667936025,0.25,85.314,85.261,0.25]
[1646667936223,0.25,85.314,85.27,17.592]
[1646667936423,0.25,85.314,85.271,6.25]
[1646667936723,0.25,85.324,85.271,6.25]
[1646667936924,0.25,85.324,85.271,0.25]
[1646667936925,6.25,85.324,85.271,0.25]
[1646667937124,2.83613526,85.313,85.271,0.25]
[1646667937323,39.43013895,85.312,85.249,0.25]
[1646667937725,2.83613526,85.311,85.249,0.25]
[1646667937924,0.25,85.31,85.249,0.25]
[1646667938324,2.83613526,85.309,85.249,0.25]
[1646667938523,0.25,85.308,85.249,0.25]
[1646667938924,2.83613526,85.307,85.249,0.25]
[1646667939125,0.25,85.306,85.244,0.25]
[1646667939324,5.863,85.305,85.244,0.25]
[1646667939527,0.25,85.304,85.244,0.25]
[1646667939725,0.25,85.304,85.223,58.35]
[1646667939726,5.863,85.303,85.223,58.35]
[1646667940027,116.7,85.297,85.211,22.7259]
[1646667940226,17.6062,85.28,85.211,22.7259]
[1646667940427,34.83681965,85.278,85.211,22.7259]
[1646667940626,0.25,85.277,85.211,22.7259]
[1646667940927,3.08613526,85.277,85.211,22.7259]
[1646667941128,3.08613526,85.277,85.22,17.6022]
[1646667941330,3.08613526,85.277,85.221,122.95]
[1646667941531,0.25,85.277,85.221,122.95]
[1646667941726,34.83681965,85.278,85.221,122.95]
[1646667941927,34.83681965,85.278,85.226,58.35]
[1646667942229,34.83681965,85.278,85.23,17.5939]
[1646667942430,34.83681965,85.278,85.231,6.25]
[1646667942630,2.83613526,85.289,85.231,6.25]
[1646667942631,2.83613526,85.289,85.234,116.7]
[1646667942827,2.83613526,85.289,85.238,186.76]
[1646667943031,2.83613526,85.289,85.239,6.25]
[1646667943426,2.83613526,85.289,85.24,116.7]
[1646667943628,39.14244118,85.291,85.241,6.25]
[1646667944025,0.25,85.29,85.241,6.25]
[1646667944227,0.25,85.29,85.241,0.25]
[1646667944426,0.25,85.29,85.245,116.7]
[1646667944627,0.25,85.319,85.246,64.6]
[1646667944828,2.83613526,85.289,85.247,0.25]
[1646667945027,0.25,85.288,85.241,0.25]
[1646667945427,48.56766474,85.288,85.241,0.25]
[1646667946032,0.25,85.288,85.25,17.5962]
[1646667946232,0.25,85.302,85.251,6.25]
[1646667946433,0.25,85.303,85.251,6.25]
[1646667946632,0.25,85.304,85.251,6.25]
[1646667946830,0.25,85.304,85.253,116.7]
[1646667947033,0.25,85.304,85.255,116.7]
[1646667947238,0.25,85.304,85.258,186.76]
[1646667947438,0.25,85.304,85.261,116.7]
[1646667947637,0.25,85.304,85.262,6.25]
[1646667947834,0.25,85.304,85.263,6.0]
[1646667948035,0.25,85.304,85.264,0.25]
[1646667948235,2.83613526,85.305,85.262,70.31]
[1646667948435,2.83613526,85.329,85.273,116.7]
[1646667948635,100.0,85.358,85.273,116.7]
[1646667948636,69.48502682,85.344,85.283,116.7]
[1646667948842,1.58058321,85.354,85.288,70.06]
[1646667949042,100.0,85.358,85.292,70.06]
[1646667949238,90.5934,85.358,85.297,116.7]
[1646667949437,90.5934,85.358,85.303,116.7]
[1646667949638,90.5934,85.358,85.318,70.06]
[1646667949837,1.58058321,85.375,85.333,116.7]
[1646667950039,5.857,85.398,85.339,175.05]
[1646667950242,5.857,85.409,85.348,70.06]
[1646667950438,36.98678471,85.423,85.354,70.06]
[1646667950636,38.02760527,85.409,85.355,6.25]
[1646667950837,36.23186011,85.396,85.355,6.25]
[1646667951239,36.23186011,85.396,85.356,6.0]
[1646667951438,46.62212348,85.383,85.357,0.25]
[1646667951638,27.28710869,85.407,85.357,0.25]
[1646667951838,5.857,85.406,85.357,0.25]
[1646667952038,5.857,85.406,85.34,6.0]
[1646667952240,24.45097343,85.407,85.341,0.25]
[1646667952640,45.00379893,85.372,85.341,0.25]
[1646667953138,24.45097343,85.407,85.341,0.25]
[1646667953338,17.5771,85.41,85.34,17.5735]
[1646667953538,1.58058321,85.424,85.341,6.0]
[1646667953737,5.857,85.423,85.341,6.0]
[1646667953939,5.857,85.424,85.341,6.0]
[1646667954141,37.47708127,85.403,85.342,186.76]
[1646667954341,5.857,85.424,85.344,186.76]
[1646667954539,5.857,85.425,85.346,70.06]
[1646667954839,5.857,85.425,85.35,17.5734]
[1646667955040,1.58058321,85.429,85.351,6.25]
[1646667955240,1.58058321,85.429,85.352,6.25]
[1646667955439,40.87737809,85.395,85.348,0.25]
[1646667955838,0.25,85.394,85.347,6.0]
[1646667956038,0.25,85.394,85.336,6.0]
[1646667956838,0.25,85.394,85.322,6.0]
[1646667957239,0.25,85.394,85.323,0.25]
[1646667957639,0.25,85.394,85.323,187.01]
[1646667957940,0.25,85.394,85.327,70.06]
[1646667958141,0.25,85.394,85.331,58.35]
[1646667958339,0.25,85.394,85.338,70.06]
[1646667958541,0.25,85.394,85.339,6.25]
[1646667959142,0.25,85.394,85.339,0.25]
[1646667960562,17.5798,85.39,85.339,0.25]
[1646667960757,0.25,85.389,85.339,0.25]
[1646667960956,0.25,85.389,85.322,6.0]
[1646667960957,0.25,85.389,85.323,0.25]
[1646667961764,6.107,85.394,85.323,0.25]
[1646667962958,6.107,85.394,85.324,5.857]
[1646667963162,6.107,85.394,85.325,6.25]
[1646667963359,6.107,85.394,85.326,5.857]
[1646667963561,6.107,85.394,85.327,6.25]
[1646667963759,6.107,85.394,85.328,5.857]
[1646667963960,6.107,85.394,85.329,6.25]
[1646667964261,6.0,85.393,85.33,5.857]
[1646667964459,6.107,85.392,85.33,5.857]
[1646667964661,17.5797,85.39,85.317,5.857]
[1646667964960,12.107,85.389,85.299,5.857]
[1646667965160,116.7,85.388,85.3,6.0]
[1646667965361,116.7,85.386,85.272,5.857]
[1646667965575,116.7,85.369,85.272,5.857]
[1646667965778,116.7,85.359,85.241,5.86]
[1646667965975,116.7,85.357,85.243,58.35]
[1646667966176,12.111,85.356,85.245,58.35]
[1646667966374,43.35316694,85.355,85.245,58.35]
[1646667966576,12.111,85.354,85.246,5.861]
[1646667966776,31.657,85.34,85.247,6.25]
[1646667966980,48.31149929,85.339,85.248,75.922]
[1646667967274,48.31149929,85.339,85.25,134.2895]
[1646667967477,48.31149929,85.339,85.255,116.7]
[1646667967675,48.31149929,85.339,85.257,116.7]
[1646667967875,48.06149929,85.339,85.259,116.7]
[1646667968075,5.861,85.338,85.265,116.7]
[1646667968280,6.0,85.337,85.266,70.461]
[1646667968475,6.0,85.337,85.271,58.35]
[1646667968675,42.06149929,85.339,85.272,6.25]
[1646667968877,17.5854,85.36,85.272,6.25]
[1646667969075,6.0,85.359,85.273,189.59613526]
[1646667969276,0.25,85.358,85.275,70.06]
[1646667969477,0.25,85.361,85.277,70.06]
[1646667969679,90.58,85.363,85.278,82.17]
[1646667969876,36.12043085,85.362,85.278,75.92]
[1646667970077,17.5855,85.36,85.279,6.25]
[1646667970281,17.5855,85.36,85.28,5.86]
[1646667970478,17.5855,85.36,85.281,122.95]
[1646667970679,5.86,85.359,85.281,122.95]
[1646667971079,36.12043085,85.362,85.283,116.7]
[1646667971379,36.12043085,85.362,85.285,116.7]
[1646667971582,36.12043085,85.362,85.286,12.11]
[1646667971780,36.12043085,85.362,85.287,6.25]
[1646667971979,36.12043085,85.362,85.288,5.859]
[1646667972179,0.25,85.361,85.289,6.25]
[1646667972479,17.5853,85.36,85.29,5.859]
[1646667972682,12.109,85.359,85.291,6.25]
[1646667972879,6.109,85.359,85.291,6.25]
[1646667973081,6.0,85.358,85.291,0.25]
[1646667973282,6.109,85.357,85.291,0.25]
[1646667973584,17.5878,85.35,85.282,5.859]
[1646667973781,59.79960099,85.349,85.242,23.155]
[1646667973981,90.58,85.343,85.242,23.155]
[1646667974180,116.95,85.342,85.242,23.155]
[1646667974479,14.06,85.34,85.242,23.155]
[1646667974680,12.112,85.339,85.242,23.155]
[1646667974879,12.112,85.339,85.243,6.0]
[1646667975080,17.5951,85.33,85.244,0.25]
[1646667975280,60.1434346,85.329,85.244,0.25]
[1646667975479,90.58,85.328,85.244,0.25]
[1646667975682,12.112,85.327,85.244,0.25]
[1646667976086,116.7,85.326,85.244,0.25]
[1646667976383,17.5947,85.32,85.243,0.25]
[1646667976581,12.112,85.319,85.243,0.25]
[1646667976781,90.58,85.316,85.243,0.25]
[1646667976982,45.34086839,85.314,85.243,0.25]
[1646667977183,12.113,85.313,85.243,0.25]
[1646667977381,6.113,85.313,85.237,23.8033]
[1646667977582,17.5954,85.31,85.237,23.8033]
[1646667977782,6.113,85.309,85.238,6.0]
[1646667977983,12.113,85.309,85.222,6.0]
[1646667978183,8.94913526,85.309,85.222,6.0]
[1646667978384,6.0,85.308,85.222,6.0]
[1646667978587,90.58,85.301,85.222,6.0]
[1646667978884,17.6028,85.29,85.222,6.0]
[1646667979085,6.114,85.289,85.222,6.0]
[1646667979784,6.0,85.288,85.222,6.0]
[1646667979985,6.114,85.287,85.211,22.6569]
[1646667980187,17.6015,85.28,85.222,6.0]
[1646667980390,17.6015,85.28,85.222,6.25]
[1646667980792,17.6015,85.28,85.222,0.25]
[1646667981991,42.1107523,85.286,85.222,6.25]
[1646667982190,0.25,85.285,85.222,64.6]
[1646667982692,0.25,85.285,85.222,6.25]
[1646667982893,17.6015,85.28,85.222,6.25]
[1646667983290,0.25,85.285,85.222,6.25]
[1646667983491,0.25,85.285,85.223,116.7]
[1646667983793,0.25,85.285,85.23,17.5969]
[1646667983991,0.25,85.285,85.231,6.25]
[1646667984191,0.25,85.285,85.231,0.25]
[1646667984391,0.25,85.285,85.232,6.0]
[1646667984591,0.25,85.285,85.233,0.25]
[1646667985797,0.25,85.285,85.224,0.25]
[1646667986594,0.25,85.285,85.225,175.05]
[1646667986794,0.25,85.285,85.226,6.25]
[1646667987896,5.864,85.308,85.226,6.25]
[1646667988095,0.25,85.307,85.23,17.5966]
[1646667988293,0.25,85.307,85.231,6.25]
[1646667989196,0.25,85.312,85.231,6.25]
[1646667989793,5.863,85.311,85.231,6.25]
[1646667989992,0.25,85.31,85.231,6.25]
[1646667990197,17.5972,85.3,85.231,6.25]
[1646667990494,51.97825282,85.299,85.231,6.25]
[1646667990793,0.25,85.298,85.232,6.0]
[1646667990994,0.25,85.298,85.231,0.25]
[1646667990995,0.25,85.298,85.233,0.25]
[1646667991194,0.25,85.298,85.231,0.25]
[1646667991195,8.70013526,85.297,85.222,23.2013]
[1646667991397,17.5995,85.29,85.18,14.06]
[1646667991594,116.7,85.288,85.212,6.0]
[1646667991796,116.7,85.286,85.183,6.12530679]
[1646667992093,153.114796,85.284,85.184,6.0]
[1646667992296,14.06,85.28,85.184,6.0]
[1646667992494,34.21407758,85.269,85.184,6.0]
[1646667992694,12.115,85.268,85.176,58.35]
[1646667992895,105.53113526,85.268,85.19,17.6065]
[1646667993096,12.115,85.268,85.191,6.25]
[1646667993294,2.83613526,85.267,85.191,6.25]
[1646667993495,17.6059,85.26,85.191,6.25]
[1646667993696,0.25,85.259,85.191,0.25]
[1646667993995,0.25,85.259,85.192,6.0]
[1646667994201,0.25,85.259,85.193,0.25]
[1646667994399,5.865,85.258,85.18,17.6081]
[1646667994598,41.51930995,85.249,85.181,6.0]
[1646667994797,0.25,85.248,85.181,6.0]
[1646667995399,0.25,85.248,85.179,6.0]
[1646667996098,0.25,85.248,85.19,17.6068]
[1646667996298,0.25,85.248,85.191,6.25]
[1646667997102,0.25,85.248,85.191,0.25]
[1646667997304,0.25,85.248,85.181,6.25]
[1646667997901,17.6094,85.24,85.181,6.25]
[1646667998105,0.25,85.248,85.181,6.25]
[1646667998303,0.25,85.248,85.19,17.6067]
[1646667998502,0.25,85.248,85.191,6.25]
[1646667999805,6.25,85.248,85.191,6.0]
[1646668000005,6.25,85.248,84.917,7.59]
[1646668000006,17.6093,85.24,85.162,6.0]
[1646668000208,0.25,85.239,85.148,6.0]
[1646668000405,110.0,85.238,85.134,47.2744]
[1646668000607,8.83613526,85.239,85.14,14.06]
[1646668000807,2.83613526,85.239,85.16,17.6122]
[1646668001107,41.51930995,85.249,85.168,186.76]
[1646668001306,41.51930995,85.249,85.17,116.7]
[1646668001509,41.51930995,85.249,85.171,0.25]
[1646668001707,0.25,85.248,85.172,116.7]
[1646668001910,41.51930995,85.249,85.19,17.6054]
[1646668002110,41.51930995,85.249,85.191,6.25]
[1646668002709,41.51930995,85.249,85.192,6.0]
[1646668002907,41.51930995,85.249,85.193,0.25]
[1646668003108,41.51930995,85.249,85.191,0.25]
[1646668003309,0.25,85.248,85.191,0.25]
[1646668004111,0.25,85.248,85.187,0.25]
[1646668004311,90.58,85.271,85.193,116.7]
[1646668004512,1.58058321,85.29,85.199,116.7]
[1646668004712,5.865,85.289,85.211,116.7]
[1646668004910,1.58058321,85.296,85.22,0.53061074]
[1646668005112,1.58058321,85.301,85.22,0.78061074]
[1646668005311,46.69037276,85.299,85.24,17.5961]
[1646668005511,46.69037276,85.299,85.241,0.25]
[1646668005712,48.27095597,85.299,85.241,0.25]
[1646668005913,46.69037276,85.299,85.241,0.25]
[1646668006612,5.863,85.298,85.23,17.5981]
[1646668006813,0.25,85.297,85.231,0.25]
[1646668007027,7.44458321,85.296,85.231,0.25]
[1646668007213,0.25,85.295,85.2,28.9536]
[1646668007414,1.58058321,85.291,85.2,28.9536]
[1646668007613,116.7,85.285,85.2,28.9536]
[1646668007813,1.58058321,85.28,85.2,28.9536]
[1646668008022,6.115,85.284,85.2,6.0]
[1646668008023,44.88603345,85.27,85.2,6.0]
[1646668008213,6.115,85.269,85.2,6.0]
[1646668008613,6.115,85.269,85.201,0.25]
[1646668009013,17.607,85.26,85.201,0.25]
[1646668009217,0.25,85.259,85.201,0.25]
[1646668010014,0.25,85.259,85.2,17.6041]
[1646668010216,0.25,85.268,85.201,6.25]
[1646668010416,5.865,85.267,85.201,6.25]
[1646668010619,0.25,85.266,85.201,6.25]
[1646668010816,0.25,85.268,85.201,6.25]
[1646668011019,0.25,85.268,85.201,0.25]
[1646668011217,0.25,85.268,85.192,6.0]
[1646668011420,17.6054,85.26,85.192,6.0]
[1646668011616,6.25,85.259,85.191,23.453]
[1646668012219,6.0,85.258,85.191,23.453]
[1646668012419,6.115,85.257,85.191,23.453]
[1646668012617,17.6106,85.24,85.157,23.1923753]
[1646668012817,46.19616466,85.238,85.171,6.0]
[1646668013018,6.25,85.237,85.171,6.0]
[1646668013619,17.6157,85.22,85.171,6.0]
[1646668013820,42.32882431,85.219,85.171,6.0]
[1646668014022,49.50882431,85.219,85.171,6.0]
[1646668014243,49.50882431,85.219,85.162,22.5735]
[1646668014650,17.6155,85.21,85.162,22.5735]
[1646668014946,6.25,85.209,85.162,22.5735]
[1646668015344,0.25,85.209,85.162,22.5735]
[1646668015746,0.25,85.209,85.163,6.25]
[1646668015944,0.25,85.214,85.163,6.25]
[1646668016147,17.6199,85.2,85.163,6.25]
[1646668016448,48.20585444,85.199,85.163,6.25]
[1646668016650,48.20585444,85.199,85.164,6.0]
[1646668016845,48.20585444,85.199,85.165,0.25]
[1646668017045,14.06,85.25,85.165,0.25]
[1646668017245,6.0,85.249,85.165,48.3669]
[1646668017449,6.0,85.249,85.166,6.0]
[1646668017646,17.6097,85.24,85.167,0.25]
[1646668017847,11.868,85.239,85.167,0.25]
[1646668018046,46.60075935,85.238,85.167,0.25]
[1646668018248,12.118,85.237,85.167,0.25]
[1646668018449,90.58,85.233,85.167,0.25]
[1646668018649,17.6145,85.22,85.167,0.25]
[1646668018849,0.25,85.219,85.167,0.25]
[1646668019649,0.25,85.234,85.167,0.25]
[1646668019849,46.60075935,85.238,85.167,0.25]
[1646668019850,46.60075935,85.238,85.17,17.6107]
[1646668020052,46.60075935,85.238,85.179,116.7]
[1646668020251,46.60075935,85.238,85.181,116.7]
[1646668020450,46.60075935,85.238,85.183,116.7]
[1646668020648,46.60075935,85.238,85.185,116.7]
[1646668020849,17.6066,85.26,85.19,17.6038]
[1646668021053,6.0,85.259,85.191,6.25]
[1646668021460,5.865,85.258,85.191,6.25]
[1646668021651,6.0,85.257,85.191,6.25]
[1646668021852,53.90017623,85.256,85.191,6.25]
[1646668022151,17.6075,85.25,85.191,6.25]
[1646668022350,11.867,85.249,85.192,6.0]
[1646668022555,0.25,85.248,85.183,22.6201]
[1646668022751,5.867,85.247,85.184,6.0]
[1646668022951,6.25,85.246,85.184,6.0]
[1646668023153,17.6095,85.24,85.184,6.0]
[1646668023352,54.14357843,85.239,85.184,6.0]
[1646668024052,48.27657843,85.239,85.184,6.0]
[1646668024552,1.58058321,85.262,85.19,17.6061]
[1646668024852,1.58058321,85.271,85.191,6.25]
[1646668025051,6.0,85.27,85.191,6.25]
[1646668025252,6.0,85.271,85.191,0.25]
[1646668025450,6.0,85.271,85.186,6.0]
[1646668025451,43.9235939,85.269,85.187,0.25]
[1646668025650,6.0,85.268,85.19,17.606]
[1646668025951,6.0,85.268,85.191,6.25]
[1646668026156,43.9235939,85.269,85.195,186.76]
[1646668026350,43.9235939,85.269,85.197,186.76]
[1646668026551,43.9235939,85.269,85.199,116.7]
[1646668026752,43.9235939,85.269,85.201,116.7]
[1646668026952,43.9235939,85.269,85.203,116.7]
[1646668027152,43.9235939,85.269,85.205,116.7]
[1646668027352,43.9235939,85.269,85.206,6.25]
[1646668027553,43.9235939,85.269,85.206,6.0]
[1646668027755,43.9235939,85.269,85.21,17.602]
[1646668027954,43.9235939,85.269,85.211,6.25]
[1646668028162,43.9235939,85.269,85.211,0.25]
[1646668028558,5.865,85.268,85.211,0.25]
[1646668028759,6.0,85.267,85.211,0.25]
[1646668028958,17.6051,85.26,85.203,0.25]
[1646668029158,0.25,85.259,85.203,0.25]
[1646668029358,6.25,85.265,85.203,0.25]
[1646668029558,5.865,85.264,85.203,0.25]
[1646668029758,6.25,85.263,85.203,0.25]
[1646668029959,5.865,85.262,85.203,0.25]
[1646668030162,6.25,85.261,85.203,0.25]
[1646668030362,0.25,85.261,85.203,0.25]
[1646668030561,6.0,85.268,85.203,0.25]
[1646668030862,43.9235939,85.269,85.203,201.15]
[1646668031062,1.58058321,85.287,85.204,0.23260956]
[1646668031261,6.0,85.286,85.211,116.7]
[1646668031462,11.865,85.294,85.213,116.7]
[1646668031664,11.865,85.294,85.214,30.3764]
[1646668031865,26.88627305,85.293,85.214,30.3764]
[1646668032062,11.864,85.292,85.214,30.3764]
[1646668032262,17.6037,85.27,85.214,30.3764]
[1646668032462,41.61991368,85.269,85.214,30.3764]
[1646668034163,41.61991368,85.269,85.215,116.7]
[1646668034364,41.61991368,85.269,85.216,6.25]
[1646668034565,41.61991368,85.269,85.22,17.5993]
[1646668034765,41.61991368,85.269,85.221,6.25]
[1646668035764,0.25,85.268,85.222,6.0]
[1646668035965,0.25,85.268,85.223,0.25]
[1646668036165,0.25,85.268,85.221,0.25]
[1646668036767,17.6054,85.26,85.197,5.865]
[1646668036967,17.6054,85.26,85.198,6.0]
[1646668037269,14.95113526,85.259,85.182,6.0]
[1646668037468,14.95113526,85.259,85.183,5.867]
[1646668037667,2.83613526,85.258,85.184,6.0]
[1646668037870,41.18045452,85.255,85.184,6.0]
[1646668038071,36.49515499,85.239,85.184,6.0]
[1646668038267,6.25,85.238,85.185,0.25]
[1646668038467,6.25,85.238,85.172,0.25]
[1646668038668,2.83613526,85.237,85.163,6.0]
[1646668038867,12.118,85.236,85.147,5.868]
[1646668039068,12.118,85.236,85.142,5.869]
[1646668039268,119.53613526,85.235,85.142,5.869]
[1646668039469,116.7,85.233,85.142,5.369]
[1646668039669,12.119,85.234,85.142,5.369]
[1646668039670,116.7,85.231,85.142,5.369]
[1646668039869,12.119,85.23,85.143,6.25]
[1646668040071,12.119,85.23,85.144,5.869]
[1646668040271,29.7343,85.23,85.145,6.25]
[1646668040495,2.83613526,85.229,85.146,5.869]
[1646668040692,12.119,85.228,85.147,6.25]
[1646668040893,90.58,85.226,85.148,5.869]
[1646668041094,57.75154436,85.225,85.149,6.25]
[1646668041294,57.75154436,85.225,85.15,5.869]
[1646668041493,110.0,85.209,85.142,5.869]
[1646668041693,55.83554168,85.208,85.141,0.58703418]
[1646668041898,116.7,85.207,85.141,0.58703418]
[1646668042105,116.7,85.205,85.141,0.58703418]
[1646668042301,116.7,85.189,85.141,0.58703418]
[1646668042493,116.7,85.187,85.141,0.58703418]
[1646668042694,17.6324,85.18,85.141,0.58703418]
[1646668042895,6.121,85.179,85.141,0.58703418]
[1646668043099,6.0,85.178,85.141,0.58703418]
[1646668043299,6.121,85.177,85.141,0.58703418]
[1646668043497,6.0,85.176,85.141,0.58703418]
[1646668043696,116.7,85.174,85.141,0.58703418]
[1646668043896,17.6292,85.17,85.141,0.58703418]
[1646668044096,12.121,85.169,85.141,0.58703418]
[1646668044296,14.95713526,85.169,85.141,0.58703418]
[1646668044698,90.58,85.166,85.141,0.58703418]
[1646668044997,116.7,85.157,85.141,3.418e-05]
[1646668045200,116.7,85.155,85.082,5.871]
[1646668045406,5.873,85.154,85.082,5.871]
[1646668045601,6.25,85.153,85.083,0.25]
[1646668045801,5.873,85.152,85.083,0.25]
[1646668045999,6.25,85.151,85.083,6.25]
[1646668046199,35.92331519,85.139,85.083,6.25]
[1646668046400,6.25,85.138,85.083,6.25]
[1646668047199,35.92331519,85.139,85.083,6.25]
[1646668047404,35.92331519,85.139,85.085,116.7]
[1646668047602,35.92331519,85.139,85.088,186.76]
[1646668047800,35.92331519,85.139,85.089,6.0]